[Event "Titled Tuesday Blitz February 07 Early 2023"]
[White "Tarasova, Viktoriya"]
[Black "Maximov, Dmitry"]
[WhiteFideId "4175840"]
[BlackFideId "14105659"]
[WhiteElo "2226"]
[BlackElo "2497"]
[Result "0-1"]
[Round "04"]
[TimeControl "180+2"]
[Date "2023.02.07"]
[WhiteClock "0:00:21"]
[BlackClock "0:00:14"]

1. d4 {[%clk 0:02:56]}  Nf6 {[%clk 0:02:59]} 2. c4 {[%clk 0:02:55]}  g6 {[%clk 0:03:00]} 3. Nc3 {[%clk 0:02:53]}  Bg7 {[%clk 0:03:00]} 4. e4 {[%clk 0:02:53]}  O-O {[%clk 0:03:01]} 5. h3 {[%clk 0:02:53]}  d6 {[%clk 0:03:01]} 6. Be3 {[%clk 0:02:52]}  e5 {[%clk 0:03:00]} 7. d5 {[%clk 0:02:51]}  a5 {[%clk 0:03:00]} 8. g4 {[%clk 0:02:51]}  Na6 {[%clk 0:03:01]} 9. Be2 {[%clk 0:02:51]}  Nd7 {[%clk 0:03:01]} 10. Qc2 {[%clk 0:02:43]}  Ndc5 {[%clk 0:03:01]} 11. a3 {[%clk 0:02:36]}  f5 {[%clk 0:02:57]} 12. O-O-O {[%clk 0:02:20]}  Bd7 {[%clk 0:02:40]} 13. f3 {[%clk 0:02:04]}  Nb4 {[%clk 0:02:06]} 14. axb4 {[%clk 0:01:59]}  axb4 {[%clk 0:02:06]} 15. Nb5 {[%clk 0:02:00]}  Bxb5 {[%clk 0:02:06]} 16. cxb5 {[%clk 0:01:59]}  b3 {[%clk 0:02:00]} 17. Qb1 {[%clk 0:01:41]}  fxe4 {[%clk 0:01:56]} 18. fxe4 {[%clk 0:01:32]}  Rf2 {[%clk 0:01:05]} 19. Bxf2 {[%clk 0:01:15]}  Bh6+ {[%clk 0:00:54]} 20. Rd2 {[%clk 0:01:15]}  Nxe4 {[%clk 0:00:53]} 21. Be1 {[%clk 0:00:58]}  Qg5 {[%clk 0:00:38]} 22. Nf3 {[%clk 0:00:29]}  Qe3 {[%clk 0:00:38]} 23. g5 {[%clk 0:00:30]}  Nxd2 {[%clk 0:00:21]} 24. Bxd2 {[%clk 0:00:26]}  Qxe2 {[%clk 0:00:22]} 25. gxh6 {[%clk 0:00:26]}  Qxf3 {[%clk 0:00:22]} 26. Rg1 {[%clk 0:00:23]}  Qxd5 {[%clk 0:00:16]} 27. Rxg6+ {[%clk 0:00:21]}  Kh8 {[%clk 0:00:16]} 28. Rg7 {[%clk 0:00:21]}  Qh1+ {[%clk 0:00:14]} 0-1


[Site "https://www.chess.com"]

[Event "Titled Tuesday Blitz February 07 Early 2023"]
[White "Aradhya, Garg"]
[Black "Buchenau, Frank"]
[WhiteFideId "25006746"]
[BlackFideId "4604350"]
[WhiteElo "2284"]
[BlackElo "2222"]
[Result "1-0"]
[Round "04"]
[TimeControl "180+2"]
[Date "2023.02.07"]
[WhiteClock "0:01:33"]
[BlackClock "0:00:08"]

1. d4 {[%clk 0:03:00]}  e6 {[%clk 0:02:59]} 2. c4 {[%clk 0:02:59]}  Nf6 {[%clk 0:02:58]} 3. Nc3 {[%clk 0:02:58]}  Bb4 {[%clk 0:02:58]} 4. e3 {[%clk 0:02:57]}  O-O {[%clk 0:02:57]} 5. Bd2 {[%clk 0:02:57]}  b6 {[%clk 0:02:55]} 6. Bd3 {[%clk 0:02:55]}  Bb7 {[%clk 0:02:55]} 7. Nf3 {[%clk 0:02:55]}  c5 {[%clk 0:02:54]} 8. O-O {[%clk 0:02:53]}  cxd4 {[%clk 0:02:52]} 9. exd4 {[%clk 0:02:54]}  d5 {[%clk 0:02:52]} 10. cxd5 {[%clk 0:02:50]}  Nxd5 {[%clk 0:02:41]} 11. Ne5 {[%clk 0:02:46]}  Nf6 {[%clk 0:02:20]} 12. Bg5 {[%clk 0:02:43]}  Be7 {[%clk 0:02:16]} 13. Re1 {[%clk 0:02:31]}  Nc6 {[%clk 0:02:13]} 14. Ba6 {[%clk 0:02:15]}  Qc8 {[%clk 0:01:19]} 15. Qf3 {[%clk 0:02:13]}  Na5 {[%clk 0:00:43]} 16. Bxb7 {[%clk 0:02:11]}  Qxb7 {[%clk 0:00:42]} 17. Qxb7 {[%clk 0:02:07]}  Nxb7 {[%clk 0:00:43]} 18. Nc6 {[%clk 0:02:07]}  Bd6 {[%clk 0:00:33]} 19. Bxf6 {[%clk 0:02:03]}  gxf6 {[%clk 0:00:33]} 20. d5 {[%clk 0:02:01]}  Rfe8 {[%clk 0:00:21]} 21. Rad1 {[%clk 0:01:55]}  Bf4 {[%clk 0:00:14]} 22. g3 {[%clk 0:01:53]}  Bh6 {[%clk 0:00:14]} 23. d6 {[%clk 0:01:53]}  Rf8 {[%clk 0:00:10]} 24. Nb5 {[%clk 0:01:41]}  Nd8 {[%clk 0:00:10]} 25. Ne7+ {[%clk 0:01:39]}  Kg7 {[%clk 0:00:09]} 26. Nc7 {[%clk 0:01:38]}  Rb8 {[%clk 0:00:08]} 27. Rd4 {[%clk 0:01:37]}  f5 {[%clk 0:00:08]} 28. g4 {[%clk 0:01:36]}  fxg4 {[%clk 0:00:07]} 29. Rxg4+ {[%clk 0:01:35]}  Kh8 {[%clk 0:00:08]} 30. Kh1 {[%clk 0:01:34]}  Bg7 {[%clk 0:00:08]} 31. Reg1 {[%clk 0:01:33]}  Be5 {[%clk 0:00:08]} 32. Rg8+ {[%clk 0:01:32]}  Rxg8 {[%clk 0:00:08]} 33. Rxg8# {[%clk 0:01:33]} 1-0


[Site "https://www.chess.com"]

[Event "Titled Tuesday Blitz February 07 Early 2023"]
[White "Demin, Vladimir"]
[Black "Balabayeva, Xeniya"]
[WhiteFideId "4167457"]
[BlackFideId "13719688"]
[WhiteElo "2430"]
[BlackElo "2191"]
[Result "0-1"]
[Round "04"]
[TimeControl "180+2"]
[Date "2023.02.07"]
[WhiteClock "0:00:03"]
[BlackClock "0:00:03"]

1. e4 {[%clk 0:03:00]}  c5 {[%clk 0:02:59]} 2. Nf3 {[%clk 0:03:00]}  Nc6 {[%clk 0:02:58]} 3. b4 {[%clk 0:02:59]}  cxb4 {[%clk 0:02:47]} 4. d4 {[%clk 0:02:59]}  d5 {[%clk 0:02:46]} 5. exd5 {[%clk 0:03:00]}  Qxd5 {[%clk 0:02:46]} 6. c4 {[%clk 0:03:00]}  bxc3 {[%clk 0:02:33]} 7. Nxc3 {[%clk 0:03:00]}  Qa5 {[%clk 0:02:29]} 8. d5 {[%clk 0:03:00]}  Qxc3+ {[%clk 0:02:22]} 9. Bd2 {[%clk 0:02:59]}  Qc5 {[%clk 0:02:05]} 10. dxc6 {[%clk 0:02:58]}  Qxc6 {[%clk 0:02:03]} 11. Rc1 {[%clk 0:02:55]}  Qb6 {[%clk 0:01:47]} 12. Bc4 {[%clk 0:02:47]}  e6 {[%clk 0:01:44]} 13. O-O {[%clk 0:02:45]}  Nf6 {[%clk 0:01:39]} 14. Ne5 {[%clk 0:02:32]}  Bd6 {[%clk 0:01:10]} 15. Qa4+ {[%clk 0:02:26]}  Ke7 {[%clk 0:00:55]} 16. Be3 {[%clk 0:02:19]}  Qb4 {[%clk 0:00:51]} 17. Qd1 {[%clk 0:01:27]}  Bxe5 {[%clk 0:00:20]} 18. Bxe6 {[%clk 0:01:27]}  Kxe6 {[%clk 0:00:18]} 19. Bc5 {[%clk 0:01:25]}  Qh4 {[%clk 0:00:16]} 20. g3 {[%clk 0:01:24]}  Qh5 {[%clk 0:00:16]} 21. Qb3+ {[%clk 0:01:22]}  Kd7 {[%clk 0:00:08]} 22. Qb5+ {[%clk 0:01:18]}  Ke6 {[%clk 0:00:08]} 23. Rfe1 {[%clk 0:01:07]}  Qf3 {[%clk 0:00:06]} 24. Rxe5+ {[%clk 0:00:59]}  Kxe5 {[%clk 0:00:04]} 25. Re1+ {[%clk 0:01:00]}  Ne4 {[%clk 0:00:01]} 26. Bb6+ {[%clk 0:00:37]}  Ke6 {[%clk 0:00:02]} 27. Qc4+ {[%clk 0:00:37]}  Kf6 {[%clk 0:00:02]} 28. Bd4+ {[%clk 0:00:34]}  Kg6 {[%clk 0:00:02]} 29. Re3 {[%clk 0:00:32]}  Qd1+ {[%clk 0:00:01]} 30. Kg2 {[%clk 0:00:32]}  Bf5 {[%clk 0:00:02]} 31. h4 {[%clk 0:00:21]}  Rhe8 {[%clk 0:00:02]} 32. h5+ {[%clk 0:00:22]}  Qxh5 {[%clk 0:00:02]} 33. Qb5 {[%clk 0:00:10]}  Ng5 {[%clk 0:00:01]} 34. Be5 {[%clk 0:00:06]}  Qh3+ {[%clk 0:00:01]} 35. Kg1 {[%clk 0:00:06]}  Re6 {[%clk 0:00:01]} 36. f4 {[%clk 0:00:04]}  Rae8 {[%clk 0:00:01]} 37. fxg5 {[%clk 0:00:03]}  Rxe5 {[%clk 0:00:01]} 38. Rxe5 {[%clk 0:00:02]}  Qxg3+ {[%clk 0:00:02]} 39. Kf1 {[%clk 0:00:03]}  Qxe5 {[%clk 0:00:03]} 0-1


[Site "https://www.chess.com"]

[Event "Titled Tuesday Blitz February 07 Early 2023"]
[White "Flores Quillas, Diego Saul Rodri"]
[Black "Jovic, Stanoje"]
[WhiteFideId "3822508"]
[BlackFideId "905020"]
[WhiteElo "2359"]
[BlackElo "2075"]
[Result "0-1"]
[Round "04"]
[TimeControl "180+2"]
[Date "2023.02.07"]
[WhiteClock "0:00:10"]
[BlackClock "0:00:10"]

1. e4 {[%clk 0:02:25]}  c6 {[%clk 0:02:59]} 2. d4 {[%clk 0:02:25]}  d5 {[%clk 0:02:59]} 3. Nc3 {[%clk 0:02:26]}  dxe4 {[%clk 0:02:58]} 4. Nxe4 {[%clk 0:02:24]}  Nf6 {[%clk 0:02:59]} 5. Nxf6+ {[%clk 0:02:21]}  exf6 {[%clk 0:03:00]} 6. c3 {[%clk 0:02:21]}  Bd6 {[%clk 0:03:00]} 7. Bd3 {[%clk 0:02:21]}  O-O {[%clk 0:03:00]} 8. Qc2 {[%clk 0:02:21]}  h6 {[%clk 0:03:00]} 9. Ne2 {[%clk 0:02:22]}  Qc7 {[%clk 0:03:00]} 10. h3 {[%clk 0:02:21]}  c5 {[%clk 0:03:00]} 11. O-O {[%clk 0:02:16]}  c4 {[%clk 0:03:00]} 12. Be4 {[%clk 0:02:15]}  Nc6 {[%clk 0:03:00]} 13. Be3 {[%clk 0:02:14]}  b5 {[%clk 0:02:59]} 14. f4 {[%clk 0:02:13]}  Bb7 {[%clk 0:02:55]} 15. Ng3 {[%clk 0:02:13]}  Rfe8 {[%clk 0:02:53]} 16. Rae1 {[%clk 0:02:11]}  Re7 {[%clk 0:02:39]} 17. Nf5 {[%clk 0:02:04]}  Ree8 {[%clk 0:02:24]} 18. Bc1 {[%clk 0:02:01]}  a5 {[%clk 0:02:11]} 19. Rf3 {[%clk 0:01:59]}  b4 {[%clk 0:02:08]} 20. Rg3 {[%clk 0:01:59]}  g5 {[%clk 0:01:55]} 21. Nxh6+ {[%clk 0:01:57]}  Kf8 {[%clk 0:01:55]} 22. Rf3 {[%clk 0:01:53]}  Bxf4 {[%clk 0:01:32]} 23. Bxf4 {[%clk 0:01:52]}  gxf4 {[%clk 0:01:32]} 24. Qf2 {[%clk 0:01:20]}  a4 {[%clk 0:01:12]} 25. Rxf4 {[%clk 0:01:18]}  a3 {[%clk 0:00:56]} 26. Rxf6 {[%clk 0:01:14]}  Nd8 {[%clk 0:00:55]} 27. Bxb7 {[%clk 0:00:45]}  Rxe1+ {[%clk 0:00:49]} 28. Qxe1 {[%clk 0:00:46]}  Qxb7 {[%clk 0:00:45]} 29. bxa3 {[%clk 0:00:46]}  b3 {[%clk 0:00:42]} 30. axb3 {[%clk 0:00:45]}  cxb3 {[%clk 0:00:42]} 31. Rf2 {[%clk 0:00:32]}  Rxa3 {[%clk 0:00:39]} 32. Qe5 {[%clk 0:00:19]}  Ra2 {[%clk 0:00:32]} 33. Qh8+ {[%clk 0:00:12]}  Ke7 {[%clk 0:00:32]} 34. Nf5+ {[%clk 0:00:13]}  Kd7 {[%clk 0:00:30]} 35. Qe5 {[%clk 0:00:12]}  Qc6 {[%clk 0:00:11]} 36. Qe7+ {[%clk 0:00:11]}  Kc8 {[%clk 0:00:11]} 37. Nd6+ {[%clk 0:00:12]}  Kb8 {[%clk 0:00:11]} 38. Qxd8+ {[%clk 0:00:12]}  Ka7 {[%clk 0:00:11]} 39. Rxf7+ {[%clk 0:00:11]}  Ka6 {[%clk 0:00:10]} 40. Qb8 {[%clk 0:00:10]}  Qxg2# {[%clk 0:00:10]} 0-1


[Site "https://www.chess.com"]

[Event "Titled Tuesday Blitz February 07 Early 2023"]
[White "Melikhov, Evgeny V."]
[Black "Song, Julien"]
[WhiteFideId "4122046"]
[BlackFideId "659487"]
[WhiteElo "2269"]
[BlackElo "2350"]
[Result "0-1"]
[Round "04"]
[TimeControl "180+2"]
[Date "2023.02.07"]
[WhiteClock "0:00:15"]
[BlackClock "0:01:45"]

1. d4 {[%clk 0:03:00]}  Nf6 {[%clk 0:02:59]} 2. c4 {[%clk 0:03:00]}  e6 {[%clk 0:02:59]} 3. Nc3 {[%clk 0:03:01]}  d5 {[%clk 0:03:00]} 4. cxd5 {[%clk 0:03:00]}  exd5 {[%clk 0:03:00]} 5. Bg5 {[%clk 0:03:00]}  c6 {[%clk 0:03:00]} 6. Qc2 {[%clk 0:03:00]}  g6 {[%clk 0:02:56]} 7. e3 {[%clk 0:02:56]}  Be7 {[%clk 0:02:50]} 8. Bd3 {[%clk 0:02:55]}  Nbd7 {[%clk 0:02:50]} 9. Nf3 {[%clk 0:02:54]}  Nf8 {[%clk 0:02:51]} 10. O-O {[%clk 0:02:53]}  Ne6 {[%clk 0:02:51]} 11. Bxf6 {[%clk 0:02:36]}  Bxf6 {[%clk 0:02:52]} 12. b4 {[%clk 0:02:36]}  a6 {[%clk 0:02:51]} 13. a4 {[%clk 0:02:35]}  O-O {[%clk 0:02:50]} 14. b5 {[%clk 0:02:34]}  c5 {[%clk 0:02:40]} 15. dxc5 {[%clk 0:02:21]}  Nxc5 {[%clk 0:02:40]} 16. Rad1 {[%clk 0:02:13]}  axb5 {[%clk 0:02:37]} 17. axb5 {[%clk 0:02:12]}  Ra3 {[%clk 0:02:33]} 18. Nb1 {[%clk 0:02:05]}  Rxd3 {[%clk 0:02:24]} 19. Qxc5 {[%clk 0:02:01]}  Rxd1 {[%clk 0:02:17]} 20. Rxd1 {[%clk 0:02:01]}  Be6 {[%clk 0:02:17]} 21. Nd4 {[%clk 0:01:56]}  Qc8 {[%clk 0:02:14]} 22. Rc1 {[%clk 0:01:31]}  Qxc5 {[%clk 0:02:03]} 23. Rxc5 {[%clk 0:01:30]}  Ra8 {[%clk 0:02:03]} 24. Nd2 {[%clk 0:01:23]}  Ra1+ {[%clk 0:02:03]} 25. Nf1 {[%clk 0:01:23]}  Bxd4 {[%clk 0:01:53]} 26. exd4 {[%clk 0:01:22]}  Bf5 {[%clk 0:01:54]} 27. Rxd5 {[%clk 0:00:19]}  Bd3 {[%clk 0:01:52]} 28. h3 {[%clk 0:00:19]}  Rxf1+ {[%clk 0:01:49]} 29. Kh2 {[%clk 0:00:19]}  Rxf2 {[%clk 0:01:49]} 30. Kg3 {[%clk 0:00:18]}  Rxg2+ {[%clk 0:01:48]} 31. Kf3 {[%clk 0:00:15]}  Rb2 {[%clk 0:01:45]} 0-1


[Site "https://www.chess.com"]

[Event "Titled Tuesday Blitz February 07 Early 2023"]
[White "Kodinets, Konstantin L."]
[Black "Sputnik-11"]
[WhiteFideId "4122011"]
[WhiteElo "2409"]
[BlackElo "2381"]
[Result "1-0"]
[Round "04"]
[TimeControl "180+2"]
[Date "2023.02.07"]
[WhiteClock "0:00:52"]
[BlackClock "0:00:03"]

1. d4 {[%clk 0:02:56]}  Nf6 {[%clk 0:03:00]} 2. Nf3 {[%clk 0:02:56]}  e6 {[%clk 0:02:58]} 3. Bg5 {[%clk 0:02:56]}  c5 {[%clk 0:02:58]} 4. e3 {[%clk 0:02:55]}  b6 {[%clk 0:02:56]} 5. d5 {[%clk 0:02:55]}  d6 {[%clk 0:02:46]} 6. Nc3 {[%clk 0:02:53]}  Be7 {[%clk 0:02:42]} 7. Bb5+ {[%clk 0:02:42]}  Bd7 {[%clk 0:02:28]} 8. a4 {[%clk 0:02:40]}  O-O {[%clk 0:02:25]} 9. Bxd7 {[%clk 0:02:34]}  Nbxd7 {[%clk 0:02:20]} 10. Bxf6 {[%clk 0:02:32]}  Nxf6 {[%clk 0:02:11]} 11. O-O {[%clk 0:02:30]}  a6 {[%clk 0:01:53]} 12. Re1 {[%clk 0:02:25]}  Nd7 {[%clk 0:01:48]} 13. e4 {[%clk 0:02:23]}  e5 {[%clk 0:01:45]} 14. Nd2 {[%clk 0:02:19]}  Rb8 {[%clk 0:01:33]} 15. Qe2 {[%clk 0:02:17]}  g6 {[%clk 0:01:24]} 16. Nc4 {[%clk 0:02:15]}  f5 {[%clk 0:01:13]} 17. f3 {[%clk 0:02:05]}  Nf6 {[%clk 0:01:00]} 18. Reb1 {[%clk 0:01:52]}  Nh5 {[%clk 0:00:58]} 19. g3 {[%clk 0:01:51]}  fxe4 {[%clk 0:00:52]} 20. fxe4 {[%clk 0:01:45]}  Qd7 {[%clk 0:00:39]} 21. Ne3 {[%clk 0:01:33]}  Qh3 {[%clk 0:00:28]} 22. Qg4 {[%clk 0:01:28]}  Qxg4 {[%clk 0:00:26]} 23. Nxg4 {[%clk 0:01:29]}  Kg7 {[%clk 0:00:25]} 24. Rf1 {[%clk 0:01:27]}  Rxf1+ {[%clk 0:00:24]} 25. Kxf1 {[%clk 0:01:26]}  Rf8+ {[%clk 0:00:24]} 26. Ke2 {[%clk 0:01:25]}  Nf6 {[%clk 0:00:24]} 27. Nxf6 {[%clk 0:01:25]}  Rxf6 {[%clk 0:00:23]} 28. Rb1 {[%clk 0:01:21]}  a5 {[%clk 0:00:21]} 29. Nb5 {[%clk 0:01:17]}  g5 {[%clk 0:00:20]} 30. Rf1 {[%clk 0:01:10]}  g4 {[%clk 0:00:18]} 31. Na3 {[%clk 0:01:06]}  Bd8 {[%clk 0:00:11]} 32. Nc4 {[%clk 0:01:05]}  Rxf1 {[%clk 0:00:10]} 33. Kxf1 {[%clk 0:01:04]}  Bc7 {[%clk 0:00:10]} 34. c3 {[%clk 0:01:03]}  Kf6 {[%clk 0:00:10]} 35. Kg2 {[%clk 0:01:02]}  h5 {[%clk 0:00:10]} 36. h3 {[%clk 0:01:02]}  Kg5 {[%clk 0:00:09]} 37. Ne3 {[%clk 0:01:02]}  Bd8 {[%clk 0:00:06]} 38. Nf5 {[%clk 0:01:02]}  Bc7 {[%clk 0:00:06]} 39. Ng7 {[%clk 0:01:02]}  Bb8 {[%clk 0:00:02]} 40. Ne6+ {[%clk 0:00:59]}  Kg6 {[%clk 0:00:01]} 41. Kh2 {[%clk 0:00:52]}  Kf6 {[%clk 0:00:02]} 42. hxg4 {[%clk 0:00:51]}  hxg4 {[%clk 0:00:02]} 43. Kg2 {[%clk 0:00:52]}  Kg6 {[%clk 0:00:03]} 44. Kf2 {[%clk 0:00:52]}  Kf6 {[%clk 0:00:04]} 45. Ke3 {[%clk 0:00:52]}  Ke7 {[%clk 0:00:04]} 46. Kd3 {[%clk 0:00:52]}  Kd7 {[%clk 0:00:04]} 47. Kc4 {[%clk 0:00:52]}  Ba7 {[%clk 0:00:03]} 48. Kb5 {[%clk 0:00:52]}  Kc8 {[%clk 0:00:02]} 49. Kc6 {[%clk 0:00:52]}  Bb8 {[%clk 0:00:03]} 50. Kxb6 {[%clk 0:00:52]} 1-0


[Site "https://www.chess.com"]

[Event "Titled Tuesday Blitz February 07 Early 2023"]
[White "Yaran, Siar"]
[Black "Nikologorsky, Matfei"]
[WhiteFideId "6323006"]
[BlackFideId "24102474"]
[WhiteElo "2288"]
[BlackElo "2182"]
[Result "1-0"]
[Round "04"]
[TimeControl "180+2"]
[Date "2023.02.07"]
[WhiteClock "0:01:24"]
[BlackClock "0:00:04"]

1. d4 {[%clk 0:02:55]}  Nf6 {[%clk 0:02:57]} 2. c4 {[%clk 0:02:52]}  e6 {[%clk 0:02:57]} 3. Nc3 {[%clk 0:02:51]}  Bb4 {[%clk 0:02:57]} 4. e3 {[%clk 0:02:51]}  d5 {[%clk 0:02:56]} 5. a3 {[%clk 0:02:44]}  Bxc3+ {[%clk 0:02:56]} 6. bxc3 {[%clk 0:02:45]}  O-O {[%clk 0:02:53]} 7. cxd5 {[%clk 0:02:46]}  exd5 {[%clk 0:02:50]} 8. Bd3 {[%clk 0:02:46]}  Re8 {[%clk 0:02:36]} 9. Ne2 {[%clk 0:02:46]}  Nbd7 {[%clk 0:02:30]} 10. O-O {[%clk 0:02:43]}  Ne4 {[%clk 0:02:30]} 11. f3 {[%clk 0:02:43]}  Nd6 {[%clk 0:02:26]} 12. Ng3 {[%clk 0:02:42]}  Nf6 {[%clk 0:02:24]} 13. Ra2 {[%clk 0:02:39]}  h5 {[%clk 0:02:16]} 14. Re2 {[%clk 0:02:39]}  h4 {[%clk 0:02:15]} 15. Nh1 {[%clk 0:02:40]}  Bd7 {[%clk 0:01:49]} 16. Nf2 {[%clk 0:02:40]}  Bb5 {[%clk 0:01:42]} 17. e4 {[%clk 0:02:19]}  dxe4 {[%clk 0:01:33]} 18. fxe4 {[%clk 0:02:19]}  Bxd3 {[%clk 0:00:51]} 19. Qxd3 {[%clk 0:02:18]}  Nh7 {[%clk 0:00:31]} 20. e5 {[%clk 0:02:14]}  Qe7 {[%clk 0:00:26]} 21. Re3 {[%clk 0:02:02]}  Nc8 {[%clk 0:00:24]} 22. Ne4 {[%clk 0:02:02]}  Nb6 {[%clk 0:00:21]} 23. Rh3 {[%clk 0:01:50]}  Rad8 {[%clk 0:00:19]} 24. Qf3 {[%clk 0:01:42]}  Nc4 {[%clk 0:00:17]} 25. g3 {[%clk 0:01:35]}  g5 {[%clk 0:00:12]} 26. gxh4 {[%clk 0:01:33]}  gxh4 {[%clk 0:00:11]} 27. Kh1 {[%clk 0:01:29]}  Kh8 {[%clk 0:00:11]} 28. Qh5 {[%clk 0:01:28]}  Rg8 {[%clk 0:00:08]} 29. Nf6 {[%clk 0:01:24]}  Rg7 {[%clk 0:00:08]} 30. Rxh4 {[%clk 0:01:24]}  Nxe5 {[%clk 0:00:04]} 31. Qxh7+ {[%clk 0:01:23]}  Rxh7 {[%clk 0:00:04]} 32. Rxh7# {[%clk 0:01:24]} 1-0


[Site "https://www.chess.com"]

[Event "Titled Tuesday Blitz February 07 Early 2023"]
[White "Lymar, Vladislav"]
[Black "Mouhamad, Joachim"]
[WhiteFideId "14162180"]
[BlackFideId "656410"]
[WhiteElo "2119"]
[BlackElo "2238"]
[Result "1-0"]
[Round "04"]
[TimeControl "180+2"]
[Date "2023.02.07"]
[WhiteClock "0:00:04"]
[BlackClock "0:00:11"]

1. e4 {[%clk 0:03:00]}  c5 {[%clk 0:02:59]} 2. Nf3 {[%clk 0:03:00]}  Nc6 {[%clk 0:03:00]} 3. g3 {[%clk 0:03:01]}  g6 {[%clk 0:02:59]} 4. Bg2 {[%clk 0:03:01]}  Bg7 {[%clk 0:02:59]} 5. O-O {[%clk 0:03:01]}  d6 {[%clk 0:02:59]} 6. Nc3 {[%clk 0:03:02]}  e6 {[%clk 0:02:57]} 7. d3 {[%clk 0:03:02]}  Nge7 {[%clk 0:02:57]} 8. Nd2 {[%clk 0:02:58]}  O-O {[%clk 0:02:55]} 9. f4 {[%clk 0:02:59]}  d5 {[%clk 0:02:55]} 10. Ne2 {[%clk 0:02:44]}  b5 {[%clk 0:02:51]} 11. g4 {[%clk 0:02:38]}  c4 {[%clk 0:02:47]} 12. Ng3 {[%clk 0:02:33]}  cxd3 {[%clk 0:02:26]} 13. cxd3 {[%clk 0:02:31]}  Bb7 {[%clk 0:02:25]} 14. f5 {[%clk 0:02:29]}  exf5 {[%clk 0:02:18]} 15. gxf5 {[%clk 0:02:26]}  f6 {[%clk 0:01:55]} 16. Nb3 {[%clk 0:02:13]}  Qb6+ {[%clk 0:01:53]} 17. Kh1 {[%clk 0:02:11]}  Rfd8 {[%clk 0:01:49]} 18. Qe2 {[%clk 0:02:00]}  dxe4 {[%clk 0:01:33]} 19. dxe4 {[%clk 0:01:57]}  Ne5 {[%clk 0:01:27]} 20. Be3 {[%clk 0:01:56]}  Qd6 {[%clk 0:01:17]} 21. Rfd1 {[%clk 0:01:43]}  Qb8 {[%clk 0:01:14]} 22. Nc5 {[%clk 0:01:32]}  Rxd1+ {[%clk 0:01:08]} 23. Rxd1 {[%clk 0:01:30]}  N7c6 {[%clk 0:01:06]} 24. Qxb5 {[%clk 0:01:25]}  Bc8 {[%clk 0:01:05]} 25. Qxb8 {[%clk 0:01:11]}  Rxb8 {[%clk 0:01:05]} 26. b3 {[%clk 0:01:11]}  Bf8 {[%clk 0:01:01]} 27. fxg6 {[%clk 0:00:39]}  hxg6 {[%clk 0:01:02]} 28. Ne2 {[%clk 0:00:35]}  Bg4 {[%clk 0:00:59]} 29. Rd2 {[%clk 0:00:35]}  Rb5 {[%clk 0:00:58]} 30. Na4 {[%clk 0:00:23]}  Rb4 {[%clk 0:00:51]} 31. Nec3 {[%clk 0:00:20]}  Nf3 {[%clk 0:00:44]} 32. Rf2 {[%clk 0:00:17]}  Nce5 {[%clk 0:00:42]} 33. Nd5 {[%clk 0:00:16]}  Kf7 {[%clk 0:00:32]} 34. Nxb4 {[%clk 0:00:16]}  Bxb4 {[%clk 0:00:33]} 35. Bxa7 {[%clk 0:00:16]}  Be1 {[%clk 0:00:32]} 36. Re2 {[%clk 0:00:15]}  Nd3 {[%clk 0:00:28]} 37. h3 {[%clk 0:00:09]}  Bh5 {[%clk 0:00:28]} 38. Bg1 {[%clk 0:00:06]}  Nfe5 {[%clk 0:00:28]} 39. Re3 {[%clk 0:00:06]}  Bd2 {[%clk 0:00:24]} 40. Rg3 {[%clk 0:00:05]}  Bf4 {[%clk 0:00:24]} 41. Rxd3 {[%clk 0:00:06]}  Nxd3 {[%clk 0:00:24]} 42. Nc5 {[%clk 0:00:06]}  Nc1 {[%clk 0:00:22]} 43. a4 {[%clk 0:00:06]}  Ne2 {[%clk 0:00:21]} 44. a5 {[%clk 0:00:06]}  Nxg1 {[%clk 0:00:21]} 45. a6 {[%clk 0:00:04]}  Bb8 {[%clk 0:00:20]} 46. Kxg1 {[%clk 0:00:03]}  Ba7 {[%clk 0:00:20]} 47. b4 {[%clk 0:00:04]}  Be2 {[%clk 0:00:20]} 48. Bf1 {[%clk 0:00:03]}  Bxf1 {[%clk 0:00:17]} 49. Kxf1 {[%clk 0:00:04]}  Ke7 {[%clk 0:00:18]} 50. Na4 {[%clk 0:00:04]}  Kd6 {[%clk 0:00:18]} 51. b5 {[%clk 0:00:04]}  Kc7 {[%clk 0:00:18]} 52. Ke2 {[%clk 0:00:04]}  Bd4 {[%clk 0:00:17]} 53. Kd3 {[%clk 0:00:04]}  Be5 {[%clk 0:00:17]} 54. b6+ {[%clk 0:00:03]}  Kc6 {[%clk 0:00:18]} 55. Kc4 {[%clk 0:00:03]}  f5 {[%clk 0:00:16]} 56. b7 {[%clk 0:00:04]}  f4 {[%clk 0:00:15]} 57. Nc5 {[%clk 0:00:05]}  f3 {[%clk 0:00:15]} 58. Nd3 {[%clk 0:00:05]}  Bg3 {[%clk 0:00:16]} 59. Kc3 {[%clk 0:00:03]}  Kb6 {[%clk 0:00:16]} 60. Kd2 {[%clk 0:00:01]}  Kxa6 {[%clk 0:00:16]} 61. Ke3 {[%clk 0:00:02]}  f2 {[%clk 0:00:15]} 62. Nxf2 {[%clk 0:00:02]}  Kxb7 {[%clk 0:00:16]} 63. Ng4 {[%clk 0:00:03]}  Kc7 {[%clk 0:00:15]} 64. Kf3 {[%clk 0:00:03]}  Be1 {[%clk 0:00:14]} 65. Nf6 {[%clk 0:00:03]}  g5 {[%clk 0:00:15]} 66. Kg4 {[%clk 0:00:03]}  Bd2 {[%clk 0:00:15]} 67. Nh7 {[%clk 0:00:03]}  Kd6 {[%clk 0:00:15]} 68. Nxg5 {[%clk 0:00:04]}  Ke7 {[%clk 0:00:14]} 69. Kf5 {[%clk 0:00:03]}  Kf8 {[%clk 0:00:13]} 70. e5 {[%clk 0:00:03]}  Kg7 {[%clk 0:00:13]} 71. e6 {[%clk 0:00:03]}  Kh6 {[%clk 0:00:14]} 72. e7 {[%clk 0:00:03]}  Bxg5 {[%clk 0:00:12]} 73. e8=Q {[%clk 0:00:03]}  Bf6 {[%clk 0:00:11]} 74. Qg6# {[%clk 0:00:04]} 1-0


[Site "https://www.chess.com"]